bitfinex-derivatives/quotes_BTCF0:USTF0_20250713
["timestamp","ask_amount","ask_price","bid_price","bid_amount"]
[1752447235712,0.23478639,118690.0,118680.0,1.47003008]
[1752447240117,0.26595639,118690.0,118680.0,1.47003008]
[1752447240314,0.29065639,118690.0,118680.0,1.21707763]
[1752447240511,0.29065639,118690.0,118680.0,1.47003008]
[1752447240908,0.54360884,118690.0,118680.0,0.85627763]
[1752447242213,0.54360884,118690.0,118680.0,1.21695763]
[1752447242816,0.54360884,118690.0,118680.0,0.85615763]
[1752447243016,0.54360884,118690.0,118680.0,1.21695763]
[1752447243214,0.52457285,118690.0,118680.0,1.21695763]
[1752447243617,0.2716204,118690.0,118680.0,1.21695763]
[1752447243816,0.2716204,118690.0,118680.0,0.85615763]
[1752447244219,0.2716204,118690.0,118680.0,0.27927763]
[1752447244520,0.2716204,118690.0,118680.0,1.21695763]
[1752447244819,0.2716204,118690.0,118680.0,0.85615763]
[1752447246320,0.52457285,118690.0,118680.0,0.85615763]
[1752447247018,0.52457285,118690.0,118680.0,1.21695763]
[1752447247218,0.52457285,118690.0,118680.0,0.85615763]
[1752447247718,0.2716204,118690.0,118680.0,0.85615763]
[1752447247914,0.2469204,118690.0,118680.0,1.10911008]
[1752447248121,0.1694304,118690.0,118680.0,1.10911008]
[1752447248709,0.1694304,118690.0,118680.0,1.21695763]
[1752447248919,0.2181604,118690.0,118680.0,1.46991008]
[1752447249119,0.2181604,118690.0,118680.0,1.10911008]
[1752447249417,0.2181604,118690.0,118680.0,1.46991008]
[1752447249620,0.2181604,118690.0,118680.0,1.10911008]
[1752447249817,0.2181604,118690.0,118680.0,1.46991008]
[1752447250018,0.2181604,118690.0,118680.0,1.10911008]
[1752447250520,0.2181604,118690.0,118680.0,1.46991008]
[1752447251320,0.001,118690.0,118680.0,1.46991008]
[1752447251522,0.001,118690.0,118680.0,1.63842208]
[1752447251918,0.001,118690.0,118680.0,1.92972208]
[1752447253022,0.3013569,118700.0,118690.0,0.2709504]
[1752447255225,0.32036495,118700.0,118690.0,0.2709504]
[1752447255525,0.32036495,118700.0,118690.0,0.2729504]
[1752447256628,0.32036495,118700.0,118690.0,0.52590285]
[1752447259727,0.35153495,118700.0,118690.0,0.2729504]
[1752447260628,0.37649495,118700.0,118690.0,0.2729504]
[1752447261826,0.37649495,118700.0,118690.0,0.52590285]
[1752447262124,0.37649495,118700.0,118690.0,0.2729504]
[1752447264228,0.26732475,118700.0,118690.0,0.2729504]
[1752447264429,0.2483167,118700.0,118690.0,0.2729504]
[1752447264829,0.2483167,118700.0,118690.0,0.52590285]
[1752447265032,0.43804256,118700.0,118690.0,0.46267626]
[1752447266434,0.04873,118700.0,118690.0,0.65240212]
[1752447266633,0.6695431,118710.0,118700.0,0.2010063]
[1752447266837,0.92702481,118710.0,118700.0,1.03734216]
[1752447267532,0.92702481,118710.0,118700.0,1.03634216]
[1752447268032,0.92702481,118710.0,118700.0,1.03734216]
[1752447269236,0.56622481,118710.0,118700.0,1.03734216]
[1752447269431,0.92702481,118710.0,118700.0,1.03734216]
[1752447270132,0.92902481,118710.0,118700.0,1.03734216]
[1752447271034,0.88692121,118710.0,118700.0,1.03734216]
[1752447271641,0.69719535,118710.0,118700.0,1.03734216]
[1752447271842,0.88692121,118710.0,118700.0,1.03734216]
[1752447273544,0.88692121,118710.0,118700.0,1.03634216]
[1752447273843,0.88692121,118710.0,118700.0,1.03734216]
[1752447274545,0.52612121,118710.0,118700.0,1.03734216]
[1752447274744,0.88692121,118710.0,118700.0,1.03734216]
[1752447277147,0.88692121,118710.0,118700.0,1.03634216]
[1752447277347,0.52612121,118710.0,118700.0,1.03734216]
[1752447277751,0.88692121,118710.0,118700.0,1.03734216]
[1752447278043,0.84482071,118710.0,118700.0,1.03734216]
[1752447278248,0.67641171,118710.0,118700.0,1.03734216]
[1752447278548,0.65335795,118710.0,118700.0,1.22706802]
[1752447279448,0.48495585,118710.0,118700.0,1.22706802]
[1752447280347,0.65335795,118710.0,118700.0,1.22706802]
[1752447284451,0.65135795,118710.0,118700.0,1.22706802]
[1752447285348,0.65135795,118710.0,118700.0,1.22606802]
[1752447285553,0.65135795,118710.0,118700.0,1.22806802]
[1752447285852,0.48295585,118710.0,118700.0,1.22806802]
[1752447286152,0.45972585,118710.0,118700.0,1.22806802]
[1752447287050,0.48295585,118710.0,118700.0,1.22806802]
[1752447287453,0.29055795,118710.0,118700.0,1.22806802]
[1752447287650,0.65135795,118710.0,118700.0,1.22806802]
[1752447289252,0.48295585,118710.0,118700.0,1.22806802]
[1752447290254,0.48295585,118710.0,118700.0,0.65138802]
[1752447290255,0.84108381,118710.0,118700.0,0.65138802]
[1752447290455,0.84108381,118710.0,118700.0,0.8484563]
[1752447290654,0.84108381,118710.0,118700.0,0.8023763]
[1752447290955,0.84108381,118710.0,118700.0,1.03785216]
[1752447296863,0.65135795,118710.0,118700.0,1.03785216]
[1752447297062,0.84108381,118710.0,118700.0,1.03785216]
[1752447303065,0.84108381,118710.0,118700.0,0.99210216]
[1752447303364,0.84108381,118710.0,118700.0,0.41558216]
[1752447303565,0.84108381,118710.0,118700.0,0.99202216]
[1752447305669,0.84108381,118710.0,118700.0,0.41558216]
[1752447305860,0.84108381,118710.0,118700.0,0.99202216]
[1752447306369,0.84108381,118710.0,118700.0,0.41558216]
[1752447306561,0.84108381,118710.0,118700.0,0.99202216]
[1752447311665,0.84108381,118710.0,118700.0,0.41558216]
[1752447311970,0.84108381,118710.0,118700.0,0.99198216]
[1752447313466,0.84108381,118710.0,118700.0,0.41558216]
[1752447313770,0.84108381,118710.0,118700.0,0.99198216]
[1752447316072,0.84108381,118710.0,118700.0,0.41558216]
[1752447316270,0.84108381,118710.0,118700.0,0.99194216]
[1752447316773,0.84108381,118710.0,118700.0,0.41558216]
[1752447317170,0.84108381,118710.0,118700.0,0.99194216]
[1752447319473,0.84108381,118710.0,118700.0,1.03910216]
[1752447320775,0.84108381,118710.0,118700.0,0.46274216]
[1752447320975,0.84108381,118710.0,118700.0,1.03910216]
[1752447321179,0.84108381,118710.0,118700.0,0.46274216]
[1752447321476,0.84108381,118710.0,118700.0,1.03906216]
[1752447324776,0.84108381,118710.0,118700.0,0.46274216]
[1752447324976,0.84108381,118710.0,118700.0,1.03906216]
[1752447325171,0.84108381,118710.0,118700.0,1.03902216]
[1752447326383,0.65135795,118710.0,118700.0,1.03902216]
[1752447326583,0.84108381,118710.0,118700.0,1.03902216]
[1752447327081,0.65135795,118710.0,118700.0,1.03902216]
[1752447327278,0.84108381,118710.0,118700.0,1.03902216]
[1752447328181,0.84108381,118710.0,118700.0,0.46274216]
[1752447328382,0.84108381,118710.0,118700.0,1.03902216]
[1752447328982,0.84108381,118710.0,118700.0,0.46274216]
[1752447329183,0.84108381,118710.0,118700.0,1.03902216]
[1752447329684,0.84108381,118710.0,118700.0,0.46274216]
[1752447330380,0.84108381,118710.0,118700.0,1.03902216]
[1752447330882,0.48028381,118710.0,118700.0,1.03902216]
[1752447331084,0.84108381,118710.0,118700.0,1.03902216]
[1752447331583,0.84108381,118710.0,118700.0,1.22874802]
[1752447331779,0.84108381,118710.0,118700.0,0.65246802]
[1752447331984,0.65135795,118710.0,118700.0,1.03898216]
[1752447332185,0.84108381,118710.0,118700.0,1.03898216]
[1752447332885,0.84108381,118710.0,118700.0,0.46274216]
[1752447333186,0.84108381,118710.0,118700.0,1.03898216]
[1752447336883,0.84108381,118710.0,118700.0,0.46274216]
[1752447337086,0.84108381,118710.0,118700.0,1.03894216]
[1752447339990,0.84108381,118710.0,118700.0,1.22866802]
[1752447341888,0.84108381,118710.0,118700.0,0.65246802]
[1752447342090,0.84108381,118710.0,118700.0,1.22862802]
[1752447342286,0.48028381,118710.0,118700.0,1.22862802]
[1752447342687,0.84108381,118710.0,118700.0,1.22862802]
[1752447343191,0.84108381,118710.0,118700.0,0.8491763]
[1752447343391,0.84108381,118710.0,118700.0,1.22862802]
[1752447343694,0.84108381,118710.0,118700.0,1.03890216]
[1752447344392,0.84108381,118710.0,118700.0,0.46274216]
[1752447344593,0.84108381,118710.0,118700.0,1.03886216]
[1752447344992,0.84108381,118710.0,118700.0,0.46274216]
[1752447345195,0.84108381,118710.0,118700.0,1.03886216]
[1752447346191,0.48028381,118710.0,118700.0,1.03886216]
[1752447346493,0.84108381,118710.0,118700.0,1.03886216]
[1752447347193,0.65135795,118710.0,118700.0,1.03886216]
[1752447347490,0.84108381,118710.0,118700.0,1.03886216]
[1752447347792,0.84108381,118710.0,118700.0,1.22858802]
[1752447347985,0.84108381,118710.0,118700.0,1.22854802]
[1752447348186,0.65135795,118710.0,118700.0,1.22854802]
[1752447348387,0.84108381,118710.0,118700.0,1.22854802]
[1752447348793,0.84108381,118710.0,118700.0,0.65246802]
[1752447349093,0.84108381,118710.0,118700.0,1.22854802]
[1752447350193,0.84108381,118710.0,118700.0,0.65246802]
[1752447350395,0.84108381,118710.0,118700.0,1.22854802]
[1752447350692,0.84108381,118710.0,118700.0,0.65246802]
[1752447350893,0.84108381,118710.0,118700.0,1.22854802]
[1752447351990,0.65135795,118710.0,118700.0,1.22854802]
[1752447352195,0.65335795,118710.0,118700.0,1.22854802]
[1752447352498,0.65335795,118710.0,118700.0,1.22654802]
[1752447354387,0.65335795,118710.0,118700.0,1.22754802]
[1752447356999,0.65326282,118710.0,118700.0,1.22754802]
[1752447359008,0.65326282,118710.0,118700.0,0.65146802]
[1752447359204,0.65326282,118710.0,118700.0,1.22742802]
[1752447364012,0.65326282,118710.0,118700.0,0.8479763]
[1752447364214,0.84298868,118710.0,118700.0,1.22742802]
[1752447365413,0.84298868,118710.0,118700.0,1.22738802]
[1752447366010,0.65326282,118710.0,118700.0,1.22738802]
[1752447366312,0.84298868,118710.0,118700.0,1.22738802]
[1752447367111,0.84298868,118710.0,118700.0,1.22638802]
[1752447367915,0.84298868,118710.0,118700.0,0.65046802]
[1752447368415,0.84298868,118710.0,118700.0,1.22634802]
[1752447369214,0.84298868,118710.0,118700.0,0.65046802]
[1752447369417,0.84298868,118710.0,118700.0,1.22634802]
[1752447369617,0.84298868,118710.0,118700.0,0.65046802]
[1752447369815,0.84298868,118710.0,118700.0,1.22634802]
[1752447370218,0.84298868,118710.0,118700.0,0.65046802]
[1752447370412,0.84298868,118710.0,118700.0,1.22634802]
[1752447372121,0.48218868,118710.0,118700.0,1.22634802]
[1752447372309,0.84298868,118710.0,118700.0,1.22634802]
[1752447372512,0.48218868,118710.0,118700.0,1.22634802]
[1752447372713,0.84298868,118710.0,118700.0,1.22634802]
[1752447373319,0.84398868,118710.0,118700.0,1.22634802]
[1752447373719,0.84498868,118710.0,118700.0,1.22634802]
[1752447374520,0.84498868,118710.0,118700.0,1.03662216]
[1752447375724,0.84498868,118710.0,118700.0,1.22634802]
[1752447376623,0.65526282,118710.0,118700.0,1.22634802]
[1752447377922,0.65526282,118710.0,118700.0,1.03662216]
[1752447378127,0.65526282,118710.0,118700.0,1.22634802]
[1752447378426,0.29446282,118710.0,118700.0,1.22634802]
[1752447378627,0.65526282,118710.0,118700.0,1.22634802]
[1752447379826,0.29446282,118710.0,118700.0,1.22634802]
[1752447380025,0.65526282,118710.0,118700.0,1.22634802]
[1752447383130,0.65526282,118710.0,118700.0,1.22618802]
[1752447383627,0.65526282,118710.0,118700.0,0.65046802]
[1752447383828,0.65526282,118710.0,118700.0,1.22618802]
[1752447384427,0.84498868,118710.0,118700.0,0.46074216]
[1752447384627,0.2480263,118700.0,118690.0,0.7679827]
[1752447384823,1.03050874,118700.0,118690.0,0.57572]
[1752447385825,0.2480405,118690.0,118680.0,0.02163633]
[1752447386031,0.82186636,118690.0,118680.0,0.76556103]
[1752447386729,0.84097254,118690.0,118680.0,0.59711633]
[1752447386929,0.84097254,118690.0,118680.0,0.76556103]
[1752447387526,0.84097254,118690.0,118680.0,0.76656103]
[1752447387925,0.90911525,118690.0,118680.0,0.76656103]
[1752447388125,0.89000907,118690.0,118680.0,0.76656103]
[1752447388629,0.90910448,118690.0,118680.0,0.76656103]
[1752447389932,0.90910448,118690.0,118680.0,0.79020103]
[1752447390128,0.89000907,118690.0,118680.0,0.79020103]
[1752447390333,0.91009642,118690.0,118680.0,0.78920103]
[1752447393239,0.91009642,118690.0,118680.0,1.01122689]
[1752447395339,0.91009642,118690.0,118680.0,0.82150103]
[1752447395539,0.91009642,118690.0,118680.0,1.01122689]
[1752447405049,0.91009642,118690.0,118680.0,1.05838689]
[1752447414448,0.54929642,118690.0,118680.0,1.05838689]
[1752447414646,0.91009642,118690.0,118680.0,1.05838689]
[1752447414844,0.54929642,118690.0,118680.0,1.05838689]
[1752447415043,0.91009642,118690.0,118680.0,1.05838689]
[1752447419155,0.54929642,118690.0,118680.0,1.05838689]
[1752447419455,0.91009642,118690.0,118680.0,1.05838689]
[1752447420856,0.91009642,118690.0,118680.0,0.82150103]
[1752447421063,0.91009642,118690.0,118680.0,1.01122689]
[1752447421867,0.91009642,118690.0,118680.0,0.82150103]
[1752447425575,0.54929642,118690.0,118680.0,0.82150103]
[1752447425875,0.91009642,118690.0,118680.0,0.82150103]
[1752447427875,0.91009642,118690.0,118680.0,0.24582103]
[1752447428076,0.91009642,118690.0,118680.0,0.82126103]
[1752447431669,0.91009642,118690.0,118680.0,0.24582103]
[1752447431872,0.91009642,118690.0,118680.0,0.82122103]
[1752447432884,1.09982228,118690.0,118680.0,0.04507633]
[1752447433079,1.09982228,118690.0,118680.0,0.62047633]
[1752447433279,1.09982228,118690.0,118680.0,0.02143633]
[1752447433582,1.09982228,118690.0,118680.0,0.00362303]
[1752447434784,1.10812635,118690.0,118680.0,0.00362303]
[1752447436985,1.46892635,118690.0,118680.0,0.00362303]
[1752447442687,1.46062228,118690.0,118680.0,0.00362303]
[1752447442884,1.27089642,118690.0,118680.0,0.02770303]
[1752447445092,1.84621642,118690.0,118680.0,0.02770303]
[1752447446388,2.03594228,118690.0,118680.0,0.00362303]
[1752447446692,0.2694047,118680.0,118670.0,0.0002]
[1752447446893,0.2694189,118670.0,118660.0,0.04212284]
[1752447447092,0.2694189,118670.0,118660.0,0.04192284]
[1752447447093,0.83903211,118670.0,118660.0,0.04192284]
[1752447448494,0.83903211,118670.0,118660.0,0.04392284]
[1752447448688,1.02875797,118670.0,118660.0,0.01984284]
[1752447449197,0.83903211,118670.0,118660.0,0.21439584]
[1752447455595,0.83903211,118670.0,118660.0,0.24625584]
[1752447455900,0.64930625,118670.0,118660.0,0.62570756]
[1752447456195,0.26369625,118670.0,118660.0,0.67286756]
[1752447456900,0.47711211,118670.0,118660.0,0.4831417]
[1752447457300,0.47711211,118670.0,118660.0,0.67286756]
[1752447457602,0.83791211,118670.0,118660.0,0.4831417]
[1752447458599,0.83791211,118670.0,118660.0,0.67286756]
[1752447460604,0.47711211,118670.0,118660.0,0.67286756]
[1752447460808,0.83791211,118670.0,118660.0,0.4831417]
[1752447462204,0.83791211,118670.0,118660.0,0.67286756]
[1752447465310,0.47711211,118670.0,118660.0,0.67286756]
[1752447465504,0.83791211,118670.0,118660.0,0.67286756]
[1752447465705,0.64818625,118670.0,118660.0,0.67286756]
[1752447466005,0.83791211,118670.0,118660.0,0.67286756]
[1752447468411,0.47711211,118670.0,118660.0,0.67286756]
[1752447472118,0.83823975,118670.0,118660.0,0.67286756]
[1752447472818,0.47743975,118670.0,118660.0,0.67286756]
[1752447476408,0.47743975,118670.0,118660.0,0.29341584]
[1752447476614,0.83823975,118670.0,118660.0,0.67286756]
[1752447480819,0.47743975,118670.0,118660.0,1.03366756]
[1752447481220,0.47743975,118670.0,118660.0,0.67286756]
[1752447482324,0.28771389,118670.0,118660.0,0.67286756]
[1752447496636,0.47743975,118670.0,118660.0,0.67286756]
[1752447497135,0.28771389,118670.0,118660.0,0.67286756]
[1752447507137,1.02796561,118670.0,118660.0,0.78927584]
[1752447507344,1.02796561,118670.0,118660.0,0.76519584]
[1752447507539,1.02796561,118670.0,118660.0,0.59672284]
[1752447507746,0.83823975,118670.0,118660.0,0.59672284]
[1752447508146,0.83823975,118670.0,118660.0,0.76519584]
[1752447508940,0.83823975,118670.0,118660.0,0.78901584]
[1752447509140,0.83823975,118670.0,118660.0,0.9787417]
[1752447509344,0.83823975,118670.0,118660.0,1.0113917]
[1752447516646,0.83823975,118670.0,118660.0,1.0585517]
[1752447517146,0.83823975,118670.0,118660.0,1.24827756]
[1752447517354,0.47743975,118670.0,118660.0,1.24827756]
[1752447517852,0.83823975,118670.0,118660.0,1.24827756]
[1752447518153,0.47743975,118670.0,118660.0,1.0585517]
[1752447518542,0.83823975,118670.0,118660.0,1.0585517]
[1752447518949,0.83823975,118670.0,118660.0,1.24827756]
[1752447519453,0.47743975,118670.0,118660.0,1.24827756]
[1752447519646,0.83823975,118670.0,118660.0,1.24827756]
[1752447519950,0.47743975,118670.0,118660.0,1.24827756]
[1752447521153,0.83823975,118670.0,118660.0,1.24827756]
[1752447521451,0.47743975,118670.0,118660.0,1.0585517]
[1752447522352,0.83823975,118670.0,118660.0,1.0585517]
[1752447522553,0.47743975,118670.0,118660.0,1.0585517]
[1752447522755,0.83823975,118670.0,118660.0,1.0585517]
[1752447523348,0.47743975,118670.0,118660.0,1.0585517]
[1752447524251,0.64851389,118670.0,118660.0,1.0585517]
[1752447524455,0.83823975,118670.0,118660.0,1.0585517]
[1752447525051,0.47743975,118670.0,118660.0,1.0585517]
[1752447525559,0.83823975,118670.0,118660.0,1.0585517]
[1752447527659,0.83823975,118670.0,118660.0,0.86882584]
[1752447527955,0.83823975,118670.0,118660.0,1.0585517]
[1752447528657,0.47743975,118670.0,118660.0,1.0585517]
[1752447528858,0.83823975,118670.0,118660.0,1.0585517]
[1752447531261,0.47743975,118670.0,118660.0,1.0585517]
[1752447531461,0.83823975,118670.0,118660.0,1.0585517]
[1752447534665,0.83823975,118670.0,118660.0,1.0113917]
[1752447535263,0.83823975,118670.0,118660.0,0.82166584]
[1752447537668,1.02796561,118670.0,118660.0,0.76503584]
[1752447538068,1.38876561,118670.0,118660.0,0.004]
[1752447539866,0.201023,118660.0,118650.0,0.0002]
[1752447540069,0.2474672,118650.0,118640.0,0.02733969]
[1752447540367,1.03074391,118650.0,118640.0,0.02713969]
[1752447541473,1.03074391,118650.0,118640.0,0.00353969]
[1752447541865,1.03074391,118650.0,118640.0,0.00653969]
[1752447543070,1.03059839,118650.0,118640.0,0.00653969]
[1752447544072,1.03059839,118650.0,118640.0,0.00853969]
[1752447547072,1.39139839,118650.0,118640.0,0.00853969]
[1752447553878,0.66979839,118650.0,118640.0,0.00853969]
[1752447554073,1.39139839,118650.0,118640.0,0.00853969]
[1752447554283,1.39139839,118650.0,118640.0,9e-08]
[1752447555574,1.39339839,118650.0,118640.0,9e-08]
[1752447556181,0.2723914,118640.0,118630.0,9e-08]
[1752447556376,1.8123691,118640.0,118630.0,9e-08]
[1752447557377,1.8123691,118640.0,118630.0,0.00300009]
[1752447557579,1.8123691,118640.0,118630.0,0.00700009]
[1752447558974,0.2010798,118620.0,118610.0,0.02344]
[1752447559177,1.96449725,118620.0,118610.0,0.02344]
[1752447560173,1.96449725,118620.0,118610.0,0.02944]
[1752447560376,1.96449725,118620.0,118610.0,0.006]
[1752447560581,2.15422311,118620.0,118610.0,0.011]
[1752447560980,1.97306148,118620.0,118610.0,0.011]
[1752447561581,1.96449725,118620.0,118610.0,0.011]
[1752447561783,1.96449725,118620.0,118610.0,0.03444]
[1752447561981,1.96449725,118620.0,118610.0,0.06577]
[1752447562383,1.98369705,118620.0,118610.0,0.06577]
[1752447566387,2.17342291,118620.0,118610.0,0.03444]
[1752447566885,1.98369705,118620.0,118610.0,0.03444]
[1752447567785,2.17342291,118620.0,118610.0,0.011]
[1752447569184,1.98369705,118620.0,118610.0,0.011]
[1752447569691,2.17342291,118620.0,118610.0,0.011]
[1752447573496,1.98369705,118620.0,118610.0,0.011]
[1752447573791,1.98369705,118620.0,118610.0,0.234974]
[1752447573991,1.98369705,118620.0,118610.0,0.06643]
[1752447574391,1.98369705,118620.0,118610.0,0.234974]
[1752447574696,1.98369705,118620.0,118610.0,0.06643]
[1752447575998,1.40893705,118620.0,118610.0,0.06643]
[1752447576198,1.40893705,118620.0,118610.0,0.234974]
[1752447576498,1.98441705,118620.0,118610.0,0.234974]
[1752447578293,1.98441705,118620.0,118610.0,0.06643]
[1752447580197,1.98441705,118620.0,118610.0,0.234974]
[1752447580397,1.62361705,118620.0,118610.0,0.234974]
[1752447580698,1.62361705,118620.0,118610.0,0.06643]
[1752447580891,1.62361705,118620.0,118610.0,0.03573]
[1752447581392,1.62361705,118620.0,118610.0,0.011]
[1752447590805,1.60735132,118620.0,118610.0,0.011]
[1752447591705,1.79707718,118620.0,118610.0,0.011]
[1752447593206,1.79707718,118620.0,118610.0,0.01108871]
[1752447597197,2.36625476,118620.0,118610.0,1e-08]
[1752447597402,0.199484,118610.0,118600.0,0.00382548]
[1752447597706,1.22177138,118610.0,118600.0,0.00362548]
[1752447598106,0.2726082,118600.0,118590.0,0.0002]
[1752447598407,0.2726224,118590.0,118580.0,0.0002]
[1752447598602,0.1995267,118580.0,118570.0,0.1935209]
[1752447598908,1.03208822,118580.0,118570.0,0.1933209]
[1752447599400,1.03208822,118580.0,118570.0,0.2326028]
[1752447599603,1.03208822,118580.0,118570.0,0.0640119]
[1752447599807,1.03308822,118580.0,118570.0,0.2406128]
[1752447600302,1.60800822,118580.0,118570.0,0.2099128]
[1752447600600,1.60800822,118580.0,118570.0,0.0413119]
[1752447600807,1.60800822,118580.0,118570.0,0.2099128]
[1752447601004,1.60800822,118580.0,118570.0,0.2399728]
[1752447601005,1.4820958,118580.0,118570.0,0.2399728]
[1752447601210,1.4830958,118580.0,118570.0,0.36360061]
[1752447601813,0.9081758,118580.0,118570.0,0.36360061]
[1752447602004,0.9071758,118580.0,118570.0,0.35760061]
[1752447602313,0.9071758,118580.0,118570.0,0.35960061]
[1752447602810,0.9061758,118580.0,118570.0,0.35360061]
[1752447603603,0.9061758,118580.0,118570.0,0.30474061]
[1752447605612,0.6526365,118580.0,118570.0,0.60627991]
[1752447605808,0.2918365,118580.0,118570.0,0.60627991]
[1752447606004,0.2918365,118580.0,118570.0,1.18171991]
[1752447606216,0.6526365,118580.0,118570.0,0.92818061]
[1752447607214,0.9061758,118580.0,118570.0,0.92818061]
[1752447609517,0.6526365,118580.0,118570.0,0.92818061]
[1752447609720,0.9061758,118580.0,118570.0,0.92818061]
[1752447610918,0.5293817,118590.0,118580.0,0.2222867]
[1752447610919,0.6902199,118590.0,118580.0,0.2222867]
[1752447611217,0.3294199,118590.0,118580.0,0.523826]
[1752447611422,0.2872738,118590.0,118580.0,0.523826]
[1752447611922,0.6480738,118590.0,118580.0,0.523826]
[1752447612419,0.6726038,118590.0,118580.0,0.524826]
[1752447613120,0.6726038,118590.0,118580.0,0.527826]
[1752447613622,0.3118038,118590.0,118580.0,0.527826]
[1752447614014,0.2872738,118590.0,118580.0,0.527826]
[1752447614314,0.6690515,118600.0,118590.0,0.1986325]
[1752447614509,0.37309729,118600.0,118590.0,1.0990118]
[1752447614715,0.3539315,118600.0,118590.0,0.8454725]
[1752447615418,0.7147315,118600.0,118590.0,0.8454725]
[1752447615921,0.7147315,118600.0,118590.0,0.2702725]
[1752447616113,0.98743692,118600.0,118590.0,0.8474725]
[1752447616621,0.98743692,118600.0,118590.0,0.7994725]
[1752447617919,0.98743692,118600.0,118590.0,0.80689226]
[1752447619221,0.98743692,118600.0,118590.0,0.85489226]
[1752447619418,0.73389762,118600.0,118590.0,0.85489226]
[1752447619722,0.98743692,118600.0,118590.0,0.85489226]
[1752447620216,0.62663692,118600.0,118590.0,0.85489226]
[1752447620721,0.98743692,118600.0,118590.0,0.85489226]
[1752447621925,0.98743692,118600.0,118590.0,0.87232553]
[1752447622521,0.73389762,118600.0,118590.0,0.87232553]
[1752447622719,0.98743692,118600.0,118590.0,0.87232553]
[1752447628128,0.98743692,118600.0,118590.0,0.85489226]
[1752447633829,0.73389762,118600.0,118590.0,0.85489226]
[1752447634030,0.98743692,118600.0,118590.0,0.87227279]
[1752447636134,0.73389762,118600.0,118590.0,0.87227279]
[1752447636329,0.98743692,118600.0,118590.0,0.87227279]
[1752447643138,0.62663692,118600.0,118590.0,0.87227279]
[1752447643438,0.98743692,118600.0,118590.0,0.87227279]
[1752447643836,0.98743692,118600.0,118590.0,0.29707279]
[1752447644038,0.98743692,118600.0,118590.0,0.87203279]
[1752447645838,0.62663692,118600.0,118590.0,0.87203279]
[1752447646136,0.98743692,118600.0,118590.0,0.87203279]
[1752447648841,0.98743692,118600.0,118590.0,0.29707279]
[1752447649040,1.11407758,118600.0,118590.0,0.82399279]
[1752447652235,1.30416756,118600.0,118590.0,0.02680029]
[1752447652840,1.30416756,118600.0,118590.0,0.00941976]
[1752447653138,0.2709725,118590.0,118580.0,0.0002]
[1752447653338,0.2709867,118580.0,118570.0,0.06896781]
[1752447653542,0.1989409,118570.0,118560.0,0.85696013]
[1752447653745,0.82189088,118570.0,118560.0,0.79629886]
[1752447654044,1.01198086,118570.0,118560.0,0.68814653]
[1752447654248,1.01198086,118570.0,118560.0,0.62768526]
[1752447654440,1.01198086,118570.0,118560.0,0.78790791]
[1752447654744,1.01198086,118570.0,118560.0,0.62229271]
[1752447654946,0.88542194,118570.0,118560.0,0.62229271]
[1752447655246,0.88542194,118570.0,118560.0,0.59910271]
[1752447656148,0.88542194,118570.0,118560.0,0.66833145]
[1752447656346,0.90461433,118570.0,118560.0,0.66833145]
[1752447656948,0.90461433,118570.0,118560.0,0.69152145]
[1752447657449,0.90461433,118570.0,118560.0,0.67416544]
[1752447657640,0.920531,118570.0,118560.0,0.67416544]
[1752447658742,0.920531,118570.0,118560.0,0.84278064]
[1752447658943,0.920531,118570.0,118560.0,0.87584064]
[1752447659545,0.66690996,118570.0,118560.0,0.87584064]
[1752447659745,0.920531,118570.0,118560.0,0.87584064]
[1752447660152,0.920531,118570.0,118560.0,0.70722544]
[1752447660451,0.920531,118570.0,118560.0,0.0658767]
[1752447660642,0.920531,118570.0,118560.0,0.0096267]
[1752447661043,1.496891,118570.0,118560.0,0.0096267]
[1752447662254,1.496931,118570.0,118560.0,0.2298419]
[1752447663156,1.496931,118570.0,118560.0,0.0612267]
[1752447663356,1.496931,118570.0,118560.0,0.0582267]
[1752447664552,1.496931,118570.0,118560.0,0.0273067]
[1752447665845,1.496931,118570.0,118560.0,0.1959219]
[1752447666552,1.496931,118570.0,118560.0,0.0046267]
[1752447670154,1.496931,118570.0,118560.0,0.1732419]
[1752447670855,0.920531,118570.0,118560.0,0.1732419]
[1752447671152,1.496771,118570.0,118560.0,0.1732419]
[1752447671354,0.66690996,118570.0,118560.0,0.2727719]
[1752447671554,1.496771,118570.0,118560.0,0.2727719]
[1752447671956,1.496771,118570.0,118560.0,0.2268419]
[1752447679369,1.48085433,118570.0,118560.0,0.2268419]
[1752447681368,1.12005433,118570.0,118560.0,0.2268419]
[1752447681569,1.84165433,118570.0,118560.0,0.2268419]
[1752447684374,1.84165433,118570.0,118560.0,0.0582267]
[1752447684572,1.84165433,118570.0,118560.0,0.0046267]
[1752447684973,1.96845929,118570.0,118560.0,0.0046267]
[1752447686979,1.84169121,118570.0,118560.0,0.0046267]
[1752447687780,1.85797037,118570.0,118560.0,0.0046267]
[1752447688480,1.28173037,118570.0,118560.0,0.0046267]
[1752447688780,1.85789037,118570.0,118560.0,0.0046267]
[1752447696087,1.02807245,118570.0,118560.0,0.0046267]
[1752447696288,1.85817037,118570.0,118560.0,0.0046267]
[1752447697288,1.28173037,118570.0,118560.0,0.0046267]
[1752447697488,1.85809037,118570.0,118560.0,0.0046267]
[1752447697688,1.85821037,118570.0,118560.0,0.0046267]
[1752447698687,1.28173037,118570.0,118560.0,0.0046267]
[1752447698893,1.85817037,118570.0,118560.0,0.0046267]
[1752447702189,1.28173037,118570.0,118560.0,0.0046267]
[1752447702390,1.85801037,118570.0,118560.0,0.0046267]
[1752447704687,2.11166829,118570.0,118560.0,0.0046267]
[1752447705091,1.85801037,118570.0,118560.0,0.0046267]
[1752447705292,2.11166829,118570.0,118560.0,0.0046267]
[1752447706496,1.85801037,118570.0,118560.0,0.0046267]
[1752447706685,1.28173037,118570.0,118560.0,0.0046267]
[1752447706884,1.85865037,118570.0,118560.0,0.0046267]
[1752447707086,1.98548721,118570.0,118560.0,0.0046267]
[1752447707692,1.40856721,118570.0,118560.0,0.0046267]
[1752447707888,1.98552721,118570.0,118560.0,0.0046267]
[1752447708192,1.40856721,118570.0,118560.0,0.0046267]
[1752447708394,1.98544721,118570.0,118560.0,0.0046267]
[1752447709590,2.05393076,118570.0,118560.0,0.0046267]
[1752447711595,2.24417814,118570.0,118560.0,0.0046267]
[1752447713589,0.1686152,118560.0,118550.0,0.0002]
[1752447713791,0.1686152,118560.0,118540.0,0.02342]
[1752447713792,0.2703194,118550.0,118540.0,0.02342]
[1752447714094,0.2703336,118540.0,118530.0,0.14902879]
[1752447714293,1.03082075,118540.0,118530.0,0.14053119]
[1752447715096,0.90407363,118540.0,118530.0,0.14053119]
[1752447715599,0.90507363,118540.0,118530.0,0.02195775]
[1752447716486,0.90507363,118540.0,118530.0,0.02295775]
[1752447717701,0.90407363,118540.0,118530.0,0.04417775]
[1752447718895,0.54327363,118540.0,118530.0,0.04417775]
[1752447719097,1.26487363,118540.0,118530.0,0.04417775]
[1752447720604,1.26487363,118540.0,118530.0,0.02095775]
[1752447720798,1.26487363,118540.0,118530.0,0.003]
[1752447721302,1.24568124,118540.0,118530.0,0.003]
[1752447721505,1.26499679,118540.0,118530.0,0.003]